bitfinex/quotes_BTCUSD_20240821
["timestamp","ask_amount","ask_price","bid_price","bid_amount"]
[1724243693648,0.000822,59626.0,59625.0,0.167714]
[1724243693848,0.000822,59626.0,59625.0,0.55223619]
[1724243694027,0.000822,59626.0,59625.0,0.56566982]
[1724243694179,0.000822,59626.0,59625.0,0.82633355]
[1724243694379,0.000822,59626.0,59625.0,1.21159188]
[1724243694580,0.000822,59626.0,59625.0,1.53365304]
[1724243694784,0.000822,59626.0,59625.0,1.87008204]
[1724243694971,0.000822,59626.0,59625.0,1.88108204]
[1724243695168,0.000822,59626.0,59625.0,1.88308204]
[1724243695370,0.000822,59626.0,59625.0,1.89708204]
[1724243695578,0.000822,59626.0,59625.0,1.87208204]
[1724243696032,0.000822,59626.0,59625.0,1.88608204]
[1724243696990,0.000822,59626.0,59625.0,1.88708204]
[1724243697191,0.000822,59626.0,59625.0,1.91108204]
[1724243697393,0.000822,59626.0,59625.0,2.01407094]
[1724243697841,0.000822,59626.0,59625.0,2.02807094]
[1724243698050,0.000822,59626.0,59625.0,2.04407094]
[1724243698535,0.000822,59626.0,59625.0,1.99316718]
[1724243698715,0.000822,59626.0,59625.0,2.02116718]
[1724243698923,0.000822,59626.0,59625.0,2.00716718]
[1724243699125,0.000822,59626.0,59625.0,1.99316718]
[1724243699340,0.000822,59626.0,59625.0,2.00316718]
[1724243699544,0.000822,59626.0,59625.0,1.90368288]
[1724243699758,0.000822,59626.0,59625.0,1.90268288]
[1724243699969,0.000822,59626.0,59625.0,1.24511644]
[1724243700172,0.000822,59626.0,59625.0,1.19540861]
[1724243700615,0.000822,59626.0,59625.0,0.33383661]
[1724243700832,0.000822,59626.0,59625.0,0.34783661]
[1724243701246,0.000822,59626.0,59625.0,0.33383661]
[1724243701450,0.000822,59626.0,59625.0,0.34783661]
[1724243701654,0.000822,59626.0,59625.0,0.33383661]
[1724243702068,0.000822,59626.0,59625.0,0.34783661]
[1724243702270,0.000822,59626.0,59625.0,0.50155061]
[1724243702493,0.000822,59626.0,59625.0,0.48755061]
[1724243702697,0.000822,59626.0,59625.0,0.83697961]
[1724243703100,0.00062013,59626.0,59625.0,0.83697961]
[1724243703914,0.00062013,59626.0,59625.0,0.51355061]
[1724243704117,0.00062013,59626.0,59625.0,0.49955061]
[1724243704322,0.00062013,59626.0,59625.0,0.31983661]
[1724243704521,0.00062013,59626.0,59625.0,0.33383661]
[1724243704726,0.00062013,59626.0,59625.0,0.33283661]
[1724243705147,0.00062013,59626.0,59625.0,0.33383661]
[1724243705370,0.00062013,59626.0,59625.0,0.31983661]
[1724243705571,0.00062013,59626.0,59625.0,0.33183661]
[1724243705782,0.00062013,59626.0,59625.0,0.34583661]
[1724243711374,0.16833213,59626.0,59625.0,0.03943363]
[1724243711782,0.24613213,59626.0,59625.0,0.04033783]
[1724243712160,0.91698013,59626.0,59625.0,0.0269042]
[1724243712814,1.31340413,59626.0,59625.0,0.0269042]
[1724243713012,1.31340413,59626.0,59625.0,0.0149042]
[1724243713445,1.31440413,59626.0,59625.0,0.0149042]
[1724243713665,1.31440413,59626.0,59625.0,0.0009042]
[1724243713894,1.81383111,59626.0,59625.0,0.0009042]
[1724243714109,1.97880989,59626.0,59625.0,0.0009042]
[1724243714323,1.98080989,59626.0,59625.0,0.0009042]
[1724243714754,1.98280989,59626.0,59625.0,0.0009042]
[1724243716221,2.08280989,59626.0,59625.0,0.0009042]
[1724243717681,1.91883111,59626.0,59625.0,0.0009042]
[1724243719315,2.25625511,59626.0,59625.0,0.0009042]
[1724243720177,2.25525511,59626.0,59625.0,0.0009042]
[1724243720539,2.25425511,59626.0,59625.0,0.0019042]
[1724243720745,2.25625511,59626.0,59625.0,0.0029042]
[1724243720903,2.41923389,59626.0,59625.0,0.0019042]
[1724243721347,2.44323389,59626.0,59625.0,0.0029042]
[1724243721548,2.44123389,59626.0,59625.0,0.0019042]
[1724243721940,2.44323389,59626.0,59625.0,0.0029042]
[1724243722765,2.44223389,59626.0,59625.0,0.0019042]
[1724243722968,2.45223389,59626.0,59625.0,0.0029042]
[1724243724656,2.47848641,59626.0,59625.0,0.0029042]
[1724243725172,1.65316,59616.0,59615.0,0.000902]
[1724243725377,1.98114176,59616.0,59615.0,0.000902]
[1724243725574,2.41862176,59616.0,59615.0,0.000902]
[1724243725807,2.77710176,59616.0,59615.0,0.000902]
[1724243726010,1.993754,59609.0,59607.0,0.0009031]
[1724243726207,2.44473576,59609.0,59607.0,0.0009031]
[1724243726383,2.73763576,59609.0,59607.0,0.0009031]
[1724243727292,2.74263576,59609.0,59608.0,0.0019031]
[1724243727941,2.75663576,59609.0,59608.0,0.0029031]
[1724243728142,2.73763576,59609.0,59608.0,0.0009031]
[1724243728354,2.74686204,59609.0,59608.0,0.0009031]
[1724243728561,2.76086204,59609.0,59608.0,0.0019031]
[1724243728746,2.74686204,59609.0,59608.0,0.0009031]
[1724243729578,2.76086204,59609.0,59608.0,0.0019031]
[1724243730000,2.74686204,59609.0,59608.0,0.0009031]
[1724243730221,2.76086204,59609.0,59608.0,0.0019031]
[1724243730421,2.77486204,59609.0,59608.0,0.0029031]
[1724243730653,2.76086204,59609.0,59608.0,0.0019031]
[1724243730854,2.77486204,59609.0,59608.0,0.0029031]
[1724243734346,1.510065,59600.0,59599.0,0.0009031]
[1724243734550,2.20746798,59600.0,59599.0,0.0009031]
[1724243734772,2.54503798,59600.0,59599.0,0.0009031]
[1724243735030,2.56803798,59600.0,59599.0,0.0009031]
[1724243735463,2.57803798,59600.0,59599.0,0.0019031]
[1724243735665,2.74601676,59600.0,59599.0,0.0019031]
[1724243736537,2.76001676,59600.0,59599.0,0.0029031]
[1724243737531,1.46649798,59600.0,59599.0,0.0029031]
[1724243737736,1.47547808,59600.0,59599.0,0.0029031]
[1724243738221,1.89104808,59600.0,59599.0,0.0029031]
[1724243738483,1.89004808,59600.0,59599.0,0.0029031]
[1724243738745,1.89304808,59600.0,59599.0,0.0029031]
[1724243738983,1.71845686,59600.0,59599.0,0.0029031]
[1724243739223,1.78435686,59600.0,59599.0,0.0029031]
[1724243739701,2.11992686,59600.0,59599.0,0.0029031]
[1724243739947,2.14492686,59600.0,59599.0,0.0029031]
[1724243740440,2.14092686,59600.0,59599.0,0.0029031]
[1724243740692,2.14492686,59600.0,59599.0,0.0029031]
[1724243742112,2.13992686,59600.0,59599.0,0.0029031]
[1724243742313,1.78135686,59600.0,59599.0,0.0029031]
[1724243742513,1.70235686,59600.0,59599.0,0.0029031]
[1724243742965,1.47547808,59600.0,59599.0,0.0029031]
[1724243744238,1.47647808,59600.0,59599.0,0.0029031]
[1724243744446,1.47847808,59600.0,59599.0,0.0029031]
[1724243744643,1.81404808,59600.0,59599.0,0.0029031]
[1724243744773,1.55387808,59600.0,59599.0,0.0029031]
[1724243744979,1.77166589,59600.0,59599.0,0.0029031]
[1724243745181,2.40013589,59600.0,59599.0,0.0029031]
[1724243748692,2.39813589,59600.0,59599.0,0.0029031]
[1724243748905,2.40013589,59600.0,59599.0,0.0029031]
[1724243749158,2.39613589,59600.0,59599.0,0.0029031]
[1724243749337,2.40013589,59600.0,59599.0,0.0029031]
[1724243751455,2.40017589,59600.0,59599.0,0.0029031]
[1724243753794,2.39617589,59600.0,59599.0,0.0029031]
[1724243754014,2.39817589,59600.0,59599.0,0.0029031]
[1724243754457,2.42443644,59600.0,59599.0,0.0029031]
[1724243754662,2.76000644,59600.0,59599.0,0.0029031]
[1724243754872,2.44943644,59600.0,59599.0,0.0029031]
[1724243755290,2.78500644,59600.0,59599.0,0.0029031]
[1724243755497,2.44943644,59600.0,59599.0,0.0029031]
[1724243759501,2.78500644,59600.0,59599.0,0.0029031]
[1724243760367,1.17475,59587.0,59586.0,0.079]
[1724243760575,1.46501353,59587.0,59586.0,0.079]
[1724243761613,1.46501353,59587.0,59565.0,0.009042]
[1724243761614,0.167875,59568.0,59565.0,0.009042]
[1724243761867,0.26400298,59586.0,59572.0,0.0623]
[1724243762055,0.26400298,59586.0,59565.0,0.009042]
[1724243762056,0.503574,59574.0,59573.0,0.1453]
[1724243762521,0.503574,59574.0,59573.0,0.16320615]
[1724243762746,0.83929,59574.0,59573.0,0.1453]
[1724243762946,0.167858,59574.0,59573.0,0.1453]
[1724243763172,0.503574,59574.0,59573.0,0.1453]
[1724243764705,0.506574,59574.0,59573.0,0.1453]
[1724243765111,0.503574,59574.0,59573.0,0.1453]
[1724243765327,0.003,59574.0,59565.0,0.009042]
[1724243765542,0.005,59574.0,59566.0,0.30720298]
[1724243765785,0.005,59574.0,59567.0,0.1432]
[1724243765994,0.006,59574.0,59568.0,0.30720298]
[1724243766200,0.167851,59577.0,59568.0,0.17794088]
[1724243766408,0.167851,59577.0,59569.0,0.1468]
[1724243766616,0.167851,59577.0,59575.0,0.077]
[1724243766827,0.167851,59577.0,59576.0,0.1379]
[1724243767476,0.2517727,59577.0,59576.0,0.1379]
[1724243767681,0.503551,59577.0,59576.0,0.1379]
[1724243767881,0.839251,59577.0,59576.0,0.1379]
[1724243768662,1.174951,59577.0,59576.0,0.1379]
[1724243768869,1.186951,59577.0,59576.0,0.1379]
[1724243769074,1.182951,59577.0,59576.0,0.1379]
[1724243769539,1.189951,59577.0,59576.0,0.1379]
[1724243771123,1.3009461,59577.0,59576.0,0.1379]
[1724243771331,1.181951,59577.0,59576.0,0.1379]
[1724243771543,1.191951,59577.0,59576.0,0.1379]
[1724243772105,1.184951,59577.0,59576.0,0.1379]
[1724243772541,1.194951,59577.0,59576.0,0.1379]
[1724243773696,1.194951,59577.0,59576.0,0.1388042]
[1724243774777,1.31534857,59577.0,59576.0,0.0779042]
[1724243774989,1.31534857,59577.0,59576.0,0.0009042]
[1724243775827,1.47935155,59577.0,59576.0,0.0009042]
[1724243776871,1.35895398,59577.0,59576.0,0.0009042]
[1724243777094,0.859251,59577.0,59576.0,0.0009042]
[1724243777298,0.859251,59577.0,59576.0,0.1418042]
[1724243779848,0.859251,59577.0,59576.0,0.0009042]
[1724243781591,1.35895398,59577.0,59576.0,0.0009042]
[1724243781805,1.5957487,59577.0,59576.0,0.0009042]
[1724243782012,1.6767487,59577.0,59576.0,0.0009042]
[1724243783498,1.76491769,59577.0,59576.0,0.0009042]
[1724243784335,2.10061769,59577.0,59576.0,0.0009042]
[1724243786931,1.316744,59562.0,59552.0,0.57509154]
[1724243787142,1.43924698,59562.0,59561.0,0.0667031]
[1724243787590,1.43924698,59562.0,59561.0,0.0009031]
[1724243788239,1.4655226,59562.0,59561.0,0.0009031]
[1724243788449,1.50184429,59562.0,59561.0,0.0009031]
[1724243788680,1.83762829,59562.0,59561.0,0.0009031]
[1724243789532,1.85562829,59562.0,59561.0,0.0009031]
[1724243789737,1.86474084,59562.0,59561.0,0.0009031]
[1724243789984,1.86174084,59562.0,59561.0,0.0009031]
[1724243790212,1.87574084,59562.0,59561.0,0.0009031]
[1724243790427,1.86174084,59562.0,59561.0,0.0009031]
[1724243791293,1.97804084,59562.0,59561.0,0.0009031]
[1724243791710,1.96404084,59562.0,59561.0,0.0009031]
[1724243792134,1.88474084,59562.0,59561.0,0.0009031]
[1724243792347,1.46235953,59562.0,59561.0,0.0009031]
[1724243792555,1.47635953,59562.0,59561.0,0.0009031]
[1724243793405,0.96746,59562.0,59561.0,0.0009031]
[1724243793615,1.303244,59562.0,59561.0,0.0783031]
[1724243794260,1.289244,59562.0,59561.0,0.0783031]
[1724243794467,1.300244,59562.0,59561.0,0.1430031]
[1724243794895,0.96446,59562.0,59561.0,0.1430031]
[1724243795726,0.95046,59562.0,59561.0,0.1430031]
[1724243795947,0.96146,59562.0,59561.0,0.1430031]
[1724243798828,1.0911828,59562.0,59561.0,0.1430031]
[1724243799235,1.4269668,59562.0,59561.0,0.1430031]
[1724243799438,1.0911828,59562.0,59561.0,0.1430031]
[1724243799640,0.96146,59562.0,59561.0,0.1430031]
[1724243799851,1.297244,59562.0,59561.0,0.1430031]
[1724243800082,1.46124698,59562.0,59561.0,0.0009031]
[1724243800288,1.62522576,59562.0,59561.0,0.0009031]
[1724243800494,1.46124698,59562.0,59561.0,0.0009031]
[1724243800700,0.96146,59562.0,59561.0,0.0804031]
[1724243800946,0.625676,59562.0,59561.0,0.0804031]
[1724243801219,0.190714,59562.0,59561.0,0.1406031]
[1724243801464,0.168714,59562.0,59561.0,0.1406031]
[1724243801700,0.180714,59562.0,59561.0,0.1406031]
[1724243802202,0.852282,59562.0,59561.0,0.1406031]
[1724243802984,0.864282,59562.0,59561.0,0.1406031]
[1724243803190,0.504498,59562.0,59561.0,0.1406031]
[1724243803611,0.526498,59562.0,59561.0,0.1406031]
[1724243804049,0.515498,59562.0,59561.0,0.1406031]
[1724243804254,0.504498,59562.0,59561.0,0.1406031]
[1724243804458,0.175714,59562.0,59561.0,0.1406031]
[1724243804671,0.181714,59562.0,59561.0,0.1406031]
[1724243804882,0.517498,59562.0,59561.0,0.1406031]
[1724243805113,0.517498,59562.0,59561.0,0.16321549]
[1724243805292,0.181714,59562.0,59561.0,0.1406031]
[1724243805527,0.181714,59562.0,59561.0,0.16321549]
[1724243805732,0.181714,59562.0,59561.0,0.1406031]
[1724243806409,0.013822,59562.0,59561.0,0.1406031]
[1724243806627,0.181714,59562.0,59561.0,0.1406031]
[1724243807072,0.013822,59562.0,59561.0,0.1406031]
[1724243807279,0.013822,59562.0,59561.0,0.30460608]
[1724243807692,0.013822,59562.0,59561.0,0.32370014]
[1724243808100,0.006822,59562.0,59561.0,0.32370014]
[1724243808307,0.006822,59562.0,59561.0,0.49159514]
[1724243808517,0.006822,59562.0,59561.0,0.82838514]
[1724243808733,0.006822,59562.0,59561.0,0.87846233]
[1724243808941,1e-08,59562.0,59561.0,1.61155747]
[1724243809156,1e-08,59562.0,59561.0,1.53844168]
[1724243809576,0.00100001,59562.0,59561.0,1.53744168]
[1724243809996,0.00100001,59562.0,59561.0,1.53944168]
[1724243810425,0.00200001,59562.0,59561.0,1.54044168]
[1724243810626,0.001,59562.0,59561.0,1.53944168]
[1724243810829,0.001,59562.0,59561.0,1.63959606]
[1724243811255,0.001,59562.0,59561.0,1.64138642]
[1724243811469,0.002,59562.0,59561.0,1.64138642]
[1724243812113,0.002,59562.0,59561.0,0.69895996]
[1724243812319,0.002,59562.0,59561.0,0.32670014]
[1724243812733,0.002,59562.0,59561.0,0.16269716]
[1724243813196,0.169892,59562.0,59561.0,0.16269716]
[1724243813401,0.505676,59562.0,59561.0,0.02299716]
[1724243813632,0.505498,59562.0,59561.0,0.01999716]
[1724243813845,0.504498,59562.0,59561.0,0.01999716]
[1724243814056,0.840282,59562.0,59561.0,0.0059031]
[1724243814232,0.840282,59562.0,59561.0,0.02097509]
[1724243814842,0.840282,59562.0,59561.0,0.02497509]
[1724243815079,1.176066,59562.0,59561.0,0.02097509]
[1724243815291,1.56579448,59562.0,59561.0,0.02097509]
[1724243815712,1.57279448,59562.0,59561.0,0.02097509]
[1724243815921,1.57279448,59562.0,59561.0,0.02197509]
[1724243816126,1.44686691,59562.0,59561.0,0.02197509]
[1724243816298,1.44686691,59562.0,59561.0,0.02097509]
[1724243816644,1.45386691,59562.0,59561.0,0.01997509]
[1724243817048,1.46786691,59562.0,59561.0,0.02097509]
[1724243817251,1.45386691,59562.0,59561.0,0.01997509]
[1724243817666,1.46786691,59562.0,59561.0,0.02097509]
[1724243819349,1.94115091,59562.0,59561.0,0.02097509]
[1724243819552,1.96742828,59562.0,59561.0,0.02097509]
[1724243819759,1.97142828,59562.0,59561.0,0.02097509]
[1724243820821,1.989405,59559.0,59558.0,0.009042]
[1724243821028,2.46666413,59559.0,59558.0,0.009042]
[1724243821457,1.851999,59556.0,59555.0,0.00902]
[1724243821666,2.20877935,59556.0,59555.0,1e-06]
[1724243821874,2.90901086,59556.0,59555.0,1e-06]
[1724243822075,2.80857613,59556.0,59555.0,1e-06]
[1724243822907,2.82257613,59556.0,59555.0,1e-06]
[1724243823522,2.83196618,59556.0,59555.0,1e-06]
[1724243824089,2.84596618,59556.0,59555.0,1e-06]
[1724243825823,3.13886618,59556.0,59555.0,1e-06]
[1724243827158,3.16520422,59556.0,59555.0,1e-06]
[1724243828938,3.13892685,59556.0,59555.0,1e-06]
[1724243829746,2.97494807,59556.0,59555.0,1e-06]
[1724243831041,3.00123122,59556.0,59555.0,1e-06]
[1724243833255,2.97494807,59556.0,59555.0,1e-06]
[1724243834545,2.97094807,59556.0,59555.0,1e-06]
[1724243834771,2.97294807,59556.0,59555.0,1e-06]
[1724243834982,1.83891207,59556.0,59555.0,1e-06]
[1724243835185,1.81257403,59556.0,59555.0,1e-06]
[1724243835823,1.79857403,59556.0,59555.0,1e-06]
[1724243836261,1.81257403,59556.0,59555.0,1e-06]
[1724243836692,1.79857403,59556.0,59555.0,1e-06]
[1724243836917,1.94855281,59556.0,59555.0,1e-06]
[1724243837028,1.96255281,59556.0,59555.0,1e-06]
[1724243837259,1.81257403,59556.0,59555.0,1e-06]
[1724243837485,1.79857403,59556.0,59555.0,1e-06]
[1724243837699,1.81257403,59556.0,59555.0,1e-06]
[1724243839864,1.81557403,59556.0,59555.0,1e-06]
[1724243843090,1.81257403,59556.0,59555.0,1e-06]
[1724243843312,1.81257403,59556.0,59555.0,0.075901]
[1724243844138,1.97655281,59556.0,59555.0,1e-06]
[1724243845855,1.64766503,59556.0,59555.0,1e-06]
[1724243846276,1.81557403,59556.0,59555.0,1e-06]
[1724243847249,1.81257403,59556.0,59555.0,1e-06]
[1724243849944,2.24089203,59556.0,59555.0,1e-06]
[1724243850605,2.31819203,59556.0,59555.0,1e-06]
[1724243850819,2.48217081,59556.0,59555.0,1e-06]
[1724243851668,2.50845327,59556.0,59555.0,1e-06]
[1724243852346,2.34447449,59556.0,59555.0,1e-06]
[1724243854301,1.83885649,59556.0,59555.0,1e-06]
[1724243855173,1.84185649,59556.0,59555.0,1e-06]
[1724243855386,1.84285649,59556.0,59555.0,1e-06]
[1724243855591,1.86685649,59556.0,59555.0,1e-06]
[1724243855806,1.97231434,59556.0,59555.0,1e-06]
[1724243857088,1.86185649,59556.0,59555.0,1e-06]
[1724243857355,1.83985649,59556.0,59555.0,1e-06]
[1724243857569,1.83885649,59556.0,59555.0,0.075201]
[1724243857791,1.83885649,59556.0,59555.0,0.141601]
[1724243859784,1.00321751,59556.0,59555.0,0.141601]
[1724243860005,0.867545,59556.0,59555.0,0.141601]
[1724243860217,0.195909,59556.0,59555.0,0.141601]
[1724243860878,0.532549,59556.0,59555.0,0.141601]
[1724243861087,0.182731,59556.0,59555.0,0.141601]
[1724243861327,0.014822,59556.0,59555.0,0.141601]
[1724243861544,0.003822,59556.0,59555.0,0.141601]
[1724243861767,0.014822,59556.0,59555.0,0.141601]
[1724243862424,0.003822,59556.0,59555.0,0.141601]
[1724243862658,0.007822,59556.0,59555.0,0.141601]
[1724243865544,0.007822,59556.0,59555.0,0.16320664]
[1724243865751,0.003822,59556.0,59555.0,0.16320664]
[1724243865964,0.003822,59556.0,59555.0,0.33020962]
[1724243866178,0.003822,59556.0,59555.0,0.33556735]
[1724243867041,0.003822,59556.0,59555.0,0.33256735]
[1724243867252,0.003822,59556.0,59555.0,0.32920962]
[1724243867461,0.000822,59556.0,59555.0,0.32920962]
[1724243867891,0.000822,59556.0,59555.0,0.33120962]
[1724243870712,0.000822,59556.0,59555.0,0.33456727]
[1724243870922,0.000822,59556.0,59555.0,0.79537927]
[1724243871124,0.000822,59556.0,59555.0,1.13120327]
[1724243871592,0.000822,59556.0,59555.0,1.46702727]
[1724243871841,0.000822,59556.0,59555.0,1.46802727]
[1724243872126,0.000822,59556.0,59555.0,1.46702727]
[1724243872407,0.000822,59556.0,59555.0,1.46502727]
[1724243872651,0.000822,59556.0,59555.0,1.47002727]
[1724243872921,0.000822,59556.0,59555.0,1.82985127]
[1724243873167,0.000822,59562.0,59561.0,0.607695]
[1724243873416,0.000822,59562.0,59561.0,1.10748798]
[1724243873654,0.000822,59562.0,59561.0,1.12902968]
[1724243874960,0.000822,59562.0,59561.0,0.79323968]
[1724243875421,0.002822,59562.0,59561.0,0.34544468]
[1724243877193,0.002822,59562.0,59561.0,0.1814417]
[1724243880395,0.170714,59562.0,59561.0,0.1814417]
[1724243880604,0.002822,59562.0,59561.0,0.1814417]
[1724243880758,0.002822,59562.0,59561.0,0.1599]
[1724243880958,0.001822,59562.0,59561.0,0.1529]
[1724243881211,0.169714,59562.0,59561.0,0.1529]
[1724243881381,0.169714,59562.0,59561.0,0.1579]
[1724243881382,0.170714,59562.0,59561.0,0.1579]
[1724243881554,0.001822,59562.0,59561.0,0.1519]
[1724243881822,0.000822,59562.0,59561.0,0.1469]
[1724243882032,0.001822,59562.0,59561.0,0.1509]
[1724243882237,0.002822,59562.0,59561.0,0.1559]
[1724243882440,0.001822,59562.0,59561.0,0.1509]
[1724243882644,0.000822,59562.0,59561.0,0.1469]
[1724243882847,0.000822,59562.0,59561.0,0.1489]
[1724243883067,0.000822,59562.0,59561.0,0.1509]
[1724243887036,0.000822,59562.0,59561.0,0.17270645]
[1724243887576,0.000822,59562.0,59561.0,0.33670943]
[1724243887780,0.000822,59562.0,59561.0,0.50460443]
[1724243888189,0.000822,59562.0,59561.0,0.33670943]
[1724243891122,0.000822,59562.0,59561.0,0.17270645]
[1724243896710,0.000822,59562.0,59561.0,0.10820645]
[1724243897562,0.000822,59562.0,59561.0,0.02580645]
[1724243897789,0.000822,59562.0,59561.0,0.004]
[1724243898556,0.000822,59562.0,59561.0,0.02239028]
[1724243899903,0.000822,59562.0,59561.0,0.16579028]
[1724243900106,0.000822,59562.0,59561.0,0.31140298]
[1724243900310,0.000822,59562.0,59561.0,0.32979542]
[1724243903494,0.000822,59562.0,59561.0,0.16579244]
[1724243905080,0.000822,59562.0,59561.0,0.32979542]
[1724243905282,0.000822,59562.0,59561.0,0.38320282]
[1724243905500,0.000822,59562.0,59561.0,0.70647274]
[1724243905713,0.000822,59562.0,59561.0,0.80657316]
[1724243906123,0.000822,59562.0,59561.0,0.80557316]
[1724243906322,0.000822,59562.0,59561.0,0.70546257]
[1724243906724,0.000822,59562.0,59561.0,0.80580801]
[1724243906933,0.000822,59562.0,59561.0,0.97370301]
[1724243907150,0.000822,59562.0,59561.0,0.87335757]
[1724243907695,0.000822,59562.0,59561.0,0.70546257]
[1724243908730,0.000822,59562.0,59561.0,0.87335757]
[1724243908939,0.000822,59562.0,59561.0,1.20914757]
[1724243912117,0.000822,59562.0,59561.0,1.54493757]
[1724243912303,0.000822,59562.0,59561.0,1.72645399]
[1724243912510,0.16785,59577.0,59563.0,0.167887]
[1724243912719,0.16785,59577.0,59571.0,0.05016829]
[1724243913151,0.16785,59577.0,59572.0,0.12626829]
[1724243913373,0.10920492,59586.0,59574.0,0.0659]
[1724243913374,0.167836,59582.0,59574.0,0.0659]
[1724243913578,0.167836,59582.0,59576.0,0.05016829]
[1724243913988,0.400968,59583.0,59577.0,0.06587656]
[1724243914192,0.167839,59581.0,59577.0,0.01570827]
[1724243915429,0.175839,59581.0,59577.0,0.01570827]
[1724243915635,0.008,59581.0,59575.0,0.05013389]
[1724243915838,0.008,59581.0,59576.0,0.05013389]
[1724243916064,0.008,59581.0,59576.0,0.06584123]
[1724243916268,0.175838,59581.0,59576.0,0.01570734]
[1724243916471,0.008,59581.0,59576.0,0.01570734]
[1724243916883,0.167836,59582.0,59576.0,0.01570734]
[1724243917086,0.008,59581.0,59576.0,0.01570734]
[1724243917492,0.335657,59585.0,59577.0,0.0775]
[1724243917493,0.167836,59582.0,59577.0,0.0775]
[1724243917703,0.008,59581.0,59577.0,0.0785]
[1724243917914,0.008,59581.0,59578.0,0.01570174]
[1724243918321,0.167836,59582.0,59578.0,0.01570174]
[1724243918732,0.177836,59582.0,59578.0,0.01570174]
[1724243918936,0.008,59581.0,59578.0,0.01570174]
[1724243919373,0.177836,59582.0,59578.0,0.01570174]
[1724243919575,0.008,59581.0,59578.0,0.01670174]
[1724243921026,0.008822,59581.0,59580.0,0.0791]
[1724243921435,0.016822,59581.0,59580.0,0.09479613]
[1724243921842,0.008822,59581.0,59580.0,0.09479613]
[1724243922053,0.000822,59581.0,59580.0,0.09479613]
[1724243922232,0.000822,59581.0,59580.0,0.26079911]
[1724243922474,0.000822,59581.0,59580.0,0.2641554]
[1724243922679,0.000822,59581.0,59580.0,0.33935623]
[1724243922860,0.000822,59581.0,59580.0,0.71155276]
[1724243923093,0.000822,59581.0,59580.0,0.63635193]
[1724243923274,0.000822,59581.0,59580.0,0.33925088]
[1724243923484,0.000822,59581.0,59580.0,0.71144314]
[1724243923937,0.000822,59581.0,59580.0,0.63634766]
[1724243924355,0.000822,59581.0,59580.0,0.26279911]
[1724243925206,0.000822,59581.0,59580.0,0.01969613]
[1724243925826,0.000822,59581.0,59580.0,0.004]
[1724243926035,0.000822,59581.0,59580.0,0.002]
[1724243926448,0.004822,59581.0,59573.0,0.0766]
[1724243926654,0.141,59580.0,59570.0,0.12613975]
[1724243926840,0.167848,59578.0,59574.0,0.01569806]
[1724243927274,0.167852,59577.0,59570.0,0.24010298]
[1724243927502,0.245658,59574.0,59569.0,0.05003975]
[1724243927633,0.0778,59574.0,59568.0,0.52403975]
[1724243927982,0.167856,59575.0,59568.0,0.68804273]
[1724243928119,0.02631807,59573.0,59568.0,0.68804273]
[1724243929162,0.02631807,59573.0,59568.0,0.69204273]
[1724243929368,0.02631807,59573.0,59572.0,0.00020207]
[1724243930161,0.02731807,59573.0,59572.0,0.00020207]
[1724243930786,0.02831807,59573.0,59572.0,0.00520207]
[1724243931596,0.02731807,59573.0,59572.0,0.00520207]
[1724243931794,0.19517907,59573.0,59572.0,0.00520207]
[1724243932179,0.19617907,59573.0,59572.0,0.01120207]
[1724243934711,0.02831807,59573.0,59572.0,0.01120207]
[1724243935137,0.02831807,59573.0,59572.0,0.02645472]
[1724243935344,0.19617907,59573.0,59572.0,0.01120207]
[1724243935546,0.19617907,59573.0,59572.0,0.02645472]
[1724243935753,0.19617907,59573.0,59572.0,0.01120207]
[1724243935962,0.19617907,59573.0,59572.0,0.02646037]
[1724243936162,0.02831807,59573.0,59572.0,0.01120207]
[1724243936355,0.02831807,59573.0,59572.0,0.02646037]
[1724243936559,0.02831807,59573.0,59572.0,0.01120207]
[1724243936672,0.02831807,59573.0,59572.0,0.02646037]
[1724243936879,0.02831807,59573.0,59572.0,0.01120207]
[1724243937128,0.19617907,59573.0,59572.0,0.02646037]
[1724243937963,1.00642307,59573.0,59572.0,0.01120207]
[1724243938166,1.10706538,59573.0,59572.0,0.01120207]
[1724243938371,1.34214507,59573.0,59572.0,0.01120207]
[1724243939492,1.34114507,59573.0,59572.0,0.00620207]
[1724243939791,0.53490107,59573.0,59572.0,0.00020207]
[1724243940116,0.19917907,59573.0,59572.0,0.00020207]
[1724243940322,0.19417907,59573.0,59572.0,0.00020207]
[1724243940534,0.20517907,59573.0,59572.0,0.00020207]
[1724243940750,0.21217907,59573.0,59572.0,0.00120207]
[1724243940956,0.21217907,59573.0,59572.0,0.00020207]
[1724243941178,0.04431807,59573.0,59572.0,0.00020207]
[1724243941393,0.04931807,59573.0,59572.0,0.08060207]
[1724243941605,0.03831807,59573.0,59572.0,0.08060207]
[1724243941811,0.03831807,59573.0,59572.0,0.01546788]
[1724243942017,0.03831807,59573.0,59572.0,0.06550207]
[1724243942234,0.03831807,59573.0,59572.0,0.14590207]
[1724243942486,0.03831807,59573.0,59572.0,0.16116788]
[1724243942896,0.04331807,59573.0,59572.0,0.16116788]
[1724243943312,0.03131807,59573.0,59572.0,0.16116788]
[1724243943528,0.03231807,59573.0,59572.0,0.16116788]
[1724243943734,0.02731807,59573.0,59572.0,0.1645247]
[1724243943946,0.02931807,59573.0,59572.0,0.21460672]
[1724243944354,0.02931807,59573.0,59572.0,0.2112499]
[1724243944641,0.02931807,59573.0,59572.0,0.3786097]
[1724243944853,0.02931807,59573.0,59572.0,0.37525288]
[1724243945066,0.02931807,59573.0,59572.0,0.49303486]
[1724243945273,0.02931807,59573.0,59572.0,0.77254523]
[1724243945482,0.02931807,59573.0,59572.0,0.77255415]
[1724243945686,0.02931807,59573.0,59572.0,0.6974222]
[1724243947178,0.02931807,59573.0,59572.0,0.79758624]
[1724243948265,0.03014007,59573.0,59572.0,0.79758624]
[1724243948651,0.03014007,59573.0,59572.0,0.96545024]
[1724243949387,0.03014007,59573.0,59572.0,0.79758624]
[1724243949826,0.03014007,59573.0,59572.0,0.96545024]
[1724243950936,0.003822,59573.0,59572.0,0.96545024]
[1724243951140,0.003822,59573.0,59572.0,0.79758624]
[1724243951344,0.003822,59573.0,59572.0,0.6974222]
[1724243953959,0.003822,59573.0,59572.0,0.8652862]
[1724243954360,0.003822,59573.0,59572.0,0.6974222]
[1724243954564,0.003822,59573.0,59572.0,0.8652862]
[1724243954772,0.003822,59573.0,59572.0,0.6974222]
[1724243954980,0.003822,59573.0,59572.0,0.8652862]
[1724243955617,0.001822,59573.0,59572.0,0.8662862]
[1724243956024,0.002822,59573.0,59572.0,0.8712862]